fUST/lending_fUST_20250228
["ID","MTS","AMOUNT","RATE_DAILY","PERIOD"]
[354786998,1740694244982,-500.0,0.00051232,120]
[354786999,1740694244991,-500.0,0.00051232,120]
[354787000,1740694245000,-500.0,0.00051232,120]
[354787001,1740694245010,-2187.55,0.00051232,6]
[354787002,1740694245020,-2105.02,0.00051232,120]
[354787003,1740694245029,-848.17,0.00051232,120]
[354787004,1740694245038,-500.0,0.00051232,120]
[354787005,1740694245048,-500.0,0.00051232,120]
[354787006,1740694245058,-579.89,0.00051232,120]
[354787007,1740694245068,-40597.55,0.00051232,7]
[354787008,1740694245077,-500.0,0.00051232,120]
[354787009,1740694245091,-500.0,0.00051232,120]
[354787010,1740694245102,-748.24,0.00051232,120]
[354787011,1740694245111,-500.0,0.00051232,120]
[354787012,1740694245121,-55555.0,0.000515,120]
[354787013,1740694245132,-167.59728557,0.00051505,120]
[354787014,1740694245141,-607.5672034,0.00051505,31]
[354787015,1740694245151,-500.0,0.00051506,2]
[354787016,1740694245161,-500.0,0.00051506,120]
[354787017,1740694245171,-500.0,0.00051506,120]
[354787018,1740694245180,-500.0,0.00051506,120]
[354787019,1740694245190,-2187.55,0.00051506,6]
[354787020,1740694245200,-2105.02,0.00051506,120]
[354787021,1740694245209,-848.17,0.00051506,120]
[354787022,1740694245219,-500.0,0.00051506,120]
[354787023,1740694245228,-500.0,0.00051506,120]
[354787024,1740694245238,-579.89,0.00051506,120]
[354787025,1740694245248,-40597.55,0.00051506,7]
[354787026,1740694245258,-500.0,0.00051506,120]
[354787027,1740694245268,-500.0,0.00051506,120]
[354787028,1740694245278,-748.24,0.00051506,120]
[354787029,1740694245288,-500.0,0.00051506,120]
[354787030,1740694245298,-500.0,0.00051573,10]
[354787031,1740694245307,-382.52,0.000516,30]
[354787032,1740694245317,-2501.01,0.000516,30]
[354787033,1740694245326,-61450.83,0.000516,30]
[354787034,1740694245335,-508.57100773,0.00051779,120]
[354787035,1740694245346,-24210.99375459,0.0005178,35]
[354787036,1740694245355,-60070.55454619,0.0005178,35]
[354787037,1740694245365,-500.0,0.0005178,2]
[354787038,1740694245374,-500.0,0.0005178,120]
[354787039,1740694245384,-345.79,0.0005178,120]
[354787040,1740694245393,-500.0,0.0005178,120]
[354787041,1740694245403,-2187.55,0.0005178,6]
[354787042,1740694245412,-2105.02,0.0005178,120]
[354787043,1740694245421,-848.17,0.0005178,120]
[354787044,1740694245431,-500.0,0.0005178,120]
[354787045,1740694245441,-500.0,0.0005178,120]
[354787046,1740694245451,-579.89,0.0005178,120]
[354787047,1740694245460,-40597.55,0.0005178,7]
[354787048,1740694245469,-500.0,0.0005178,120]
[354787049,1740694245479,-232.61999167,0.0005178,120]
[354787050,1740694245489,-748.24,0.0005178,120]
[354787051,1740694245613,-500.0,0.0005178,120]
[354787052,1740694245623,-500.0,0.00052054,2]
[354787053,1740694245635,-500.0,0.00052054,120]
[354787054,1740694245644,-500.0,0.00052054,120]
[354787055,1740694245654,-2187.55,0.00052054,6]
[354787056,1740694245663,-2105.02,0.00052054,120]
[354787057,1740694245673,-848.17,0.00052054,120]
[354787058,1740694245682,-500.0,0.00052054,120]
[354787059,1740694245692,-500.0,0.00052054,120]
[354787060,1740694245701,-579.89,0.00052054,120]
[354787061,1740694245711,-40597.55,0.00052054,7]
[354787062,1740694245720,-271.72,0.00052054,120]
[354787063,1740694245730,-748.24,0.00052054,120]
[354787065,1740694245740,-325.71,0.00052054,120]
[354787066,1740694245749,-872.05,0.000521,30]
[354787067,1740694245759,-150.0,0.00052145,2]
[354787068,1740694245769,-150.0,0.00052145,2]
[354787069,1740694245779,-500.0,0.00052328,2]
[354787070,1740694245788,-500.0,0.00052328,120]
[354787071,1740694245798,-500.0,0.00052328,120]
[354787072,1740694245808,-2187.55,0.00052328,6]
[354787073,1740694245818,-2105.02,0.00052328,120]
[354787074,1740694245827,-848.17,0.00052328,120]
[354787075,1740694245837,-500.0,0.00052328,120]
[354787076,1740694245850,-500.0,0.00052328,120]
[354787077,1740694245859,-579.89,0.00052328,120]
[354787078,1740694245868,-40597.55,0.00052328,7]
[354787079,1740694245878,-748.24,0.00052328,120]
[354787080,1740694245887,-793.05,0.000524,51]
[354787081,1740694245897,-793.05,0.000524,51]
[354787082,1740694245908,-793.05,0.000524,51]
[354787083,1740694245917,-793.05,0.000524,51]
[354787084,1740694245927,-793.05,0.000524,51]
[354787085,1740694245937,-793.05,0.000524,51]
[354787086,1740694245946,-793.05,0.000524,51]
[354787087,1740694245956,-793.05,0.000524,51]
[354787088,1740694245965,-793.05,0.000524,51]
[354787090,1740694245975,-793.05,0.000524,51]
[354787092,1740694245984,-793.05,0.000524,51]
[354787094,1740694245993,-793.05,0.000524,51]
[354787095,1740694246003,-1845.18,0.000526,2]
[354787097,1740694246011,-300.0,0.000526,28]
[354787099,1740694246021,-500.0,0.00052602,2]
[354787100,1740694246031,-500.0,0.00052602,120]
[354787102,1740694246040,-154.7,0.00052602,120]
[354787103,1740694246050,-2187.55,0.00052602,6]
[354787105,1740694246060,-2105.02,0.00052602,120]
[354787106,1740694246069,-848.17,0.00052602,120]
[354787107,1740694246079,-500.0,0.00052602,120]
[354787108,1740694246092,-286.73,0.00052602,120]
[354787109,1740694246105,-579.89,0.00052602,120]
[354787110,1740694246114,-40597.55,0.00052602,7]
[354787111,1740694246124,-748.24,0.00052602,120]
[354787112,1740694246135,-500.0,0.00052656,24]
[354787113,1740694246144,-500.0,0.00052876,2]
[354787114,1740694246154,-500.0,0.00052876,120]
[354787115,1740694246164,-2187.55,0.00052876,6]
[354787116,1740694246173,-2105.02,0.00052876,120]
[354787117,1740694246183,-848.17,0.00052876,120]
[354787118,1740694246192,-500.0,0.00052876,120]
[354787119,1740694246202,-579.89,0.00052876,120]
[354787120,1740694246211,-40597.55,0.00052876,7]
[354787121,1740694246221,-748.24,0.00052876,120]
[354787122,1740694246230,-1000.0,0.00053122,60]
[354787123,1740694246240,-500.0,0.0005315,2]
[354787124,1740694246249,-500.0,0.0005315,120]
[354787125,1740694246258,-2187.55,0.0005315,6]
[354787126,1740694246268,-2105.02,0.0005315,120]
[354787127,1740694246277,-848.17,0.0005315,120]
[354787128,1740694246286,-500.0,0.0005315,120]
[354787129,1740694246296,-579.89,0.0005315,120]
[354787130,1740694246307,-40597.55,0.0005315,7]
[354787131,1740694246318,-748.24,0.0005315,120]
[354787132,1740694246328,-17377.02139329,0.00053407,30]
[354787133,1740694246337,-16557.26631381,0.00053407,30]
[354787134,1740694246348,-250.0,0.00053424,2]
[354787135,1740694246358,-500.0,0.00053424,120]
[354787136,1740694246366,-2187.55,0.00053424,6]
[354787137,1740694246375,-2105.02,0.00053424,120]
[354787138,1740694246384,-848.17,0.00053424,120]
[354787139,1740694246392,-500.0,0.00053424,120]
[354787140,1740694246401,-579.89,0.00053424,120]
[354787141,1740694246409,-40597.55,0.00053424,7]
[354787142,1740694246419,-748.24,0.00053424,120]
[354787143,1740694246427,-500.0,0.00053698,120]
[354787144,1740694246436,-2187.55,0.00053698,6]
[354787145,1740694246444,-2105.02,0.00053698,120]
[354787146,1740694246451,-848.17,0.00053698,120]
[354787147,1740694246460,-500.0,0.00053698,120]
[354787148,1740694246468,-579.89,0.00053698,120]
[354787149,1740694246477,-40597.55,0.00053698,7]
[354787150,1740694246487,-748.24,0.00053698,120]
[354787152,1740694246496,-157.99,0.000537,30]
[354787153,1740694246504,-500.0,0.00053965,10]
[354787154,1740694246513,-500.0,0.00053972,120]
[354787155,1740694246521,-2187.55,0.00053972,6]
[354787157,1740694246531,-2105.02,0.00053972,120]
[354787159,1740694246538,-848.17,0.00053972,120]
[354787160,1740694246544,-640.1772293,0.00053972,120]
[354787162,1740694246551,-579.89,0.00053972,120]
[354787164,1740694246557,-40597.55,0.00053972,7]
[354787165,1740694246564,-748.24,0.00053972,120]
[354787167,1740694246571,-397.0,0.00054112,2]
[354787169,1740694246577,-500.0,0.00054206,10]
[354787170,1740694246585,-2187.55,0.00054246,6]
[354787171,1740694246592,-2105.02,0.00054246,120]
[354787172,1740694246600,-848.17,0.00054246,120]
[354787174,1740694246609,-579.89,0.00054246,120]
[354787175,1740694246617,-40597.55,0.00054246,7]
[354787176,1740694246625,-748.24,0.00054246,120]
[354787177,1740694246635,-1769.31,0.000543,30]
[354787178,1740694246645,-2200.0,0.00054353,120]
[354787179,1740694246655,-150.0,0.00054353,30]
[354787180,1740694246665,-500.0,0.00054506,10]
[354787181,1740694246674,-2187.55,0.0005452,6]
[354787182,1740694246684,-2105.02,0.0005452,120]
[354787183,1740694246694,-848.17,0.0005452,120]
[354787184,1740694246703,-579.89,0.0005452,120]
[354787185,1740694246712,-40597.55,0.0005452,7]
[354787187,1740694246722,-748.24,0.0005452,120]
[354787188,1740694246732,-16557.26631381,0.00054794,30]
[354787189,1740694246743,-2187.55,0.00054794,6]
[354787190,1740694246752,-2105.02,0.00054794,120]
[354787191,1740694246763,-12607.2,0.00054794,120]
[354787192,1740694246773,-848.17,0.00054794,120]
[354787193,1740694246785,-579.89,0.00054794,120]
[354787194,1740694246795,-40597.55,0.00054794,7]
[354787195,1740694246805,-500.0,0.00054794,120]
[354787196,1740694246815,-748.24,0.00054794,120]
[354787197,1740694246824,-4500.0,0.00055,120]
[354787199,1740694246834,-1017.286658,0.00055054,15]
[354787200,1740694246843,-2187.55,0.00055068,6]
[354787201,1740694246854,-2105.02,0.00055068,120]
[354787202,1740694246864,-848.17,0.00055068,120]
[354787203,1740694246873,-579.89,0.00055068,120]
[354787204,1740694246882,-40597.55,0.00055068,7]
[354787205,1740694246892,-748.24,0.00055068,120]
[354787206,1740694246901,-150.0,0.00055145,2]
[354787207,1740694246910,-150.0,0.00055145,2]
[354787208,1740694246920,-2187.55,0.00055342,6]
[354787209,1740694246930,-2105.02,0.00055342,120]
[354787210,1740694246939,-848.17,0.00055342,120]
[354787211,1740694246949,-579.89,0.00055342,120]
[354787212,1740694246958,-40597.55,0.00055342,7]
[354787213,1740694246967,-748.24,0.00055342,120]
[354787214,1740694246977,-382.52,0.000554,30]
[354787215,1740694246987,-2501.01,0.000554,30]
[354787216,1740694246996,-61450.83,0.000554,30]
[354787217,1740694247005,-1000.0,0.00055579,7]
[354787218,1740694247015,-2187.69,0.00055616,6]
[354787219,1740694247024,-2105.11,0.00055616,120]
[354787220,1740694247034,-848.25050725,0.00055616,120]
[354787221,1740694247043,-579.99,0.00055616,120]
[354787222,1740694247053,-40597.77532999,0.00055616,7]
[354787223,1740694247062,-748.24,0.00055616,120]
[354787224,1740694247071,-1000.0,0.00055994,120]
[354787225,1740694247083,-1000.0,0.00056385,120]
[354787226,1740694247092,-150.0,0.00057,14]
[354787227,1740694247103,-150.0,0.00057,14]
[354787228,1740694247112,-1000.0,0.00057052,14]
[354787229,1740694247123,-397.0,0.00057112,2]
[354787230,1740694247133,-1000.0,0.00057622,120]
[354787231,1740694247143,-238.8720948,0.00057722,120]
[354787232,1740694247153,-1000.0,0.00057915,120]
[354787233,1740694247163,-150.0,0.00058145,2]
[354787234,1740694247173,-150.0,0.00058145,2]
[354787235,1740694247182,-1000.0,0.00058164,120]
[354787236,1740694247192,-872.05,0.000582,30]
[354787237,1740694247202,-1000.0,0.00058362,120]
[354787238,1740694247212,-999.44548693,0.00058749,30]
[354787239,1740694247221,-17377.02139329,0.00059,30]
[354787240,1740694247231,-1000.0,0.00059444,14]
[354787241,1740694247240,-4999.999999,0.000595,120]
[354787242,1740694247250,-150.65573946,0.00059973,15]
[354787243,1740694247259,-151.0,0.00059999,120]
[354787244,1740694247269,-264760.81940945,0.0006,120]
[354787245,1740694247279,-397.0,0.00060112,2]
[354787246,1740694247288,-150.0,0.00060255,14]
[354787247,1740694247298,-150.0,0.00060255,14]
[354787248,1740694247307,-12607.2,0.00060273,120]
[354787249,1740694247316,-161.0,0.000604,120]
[354787250,1740694247325,-498.0,0.00061,120]
[354787251,1740694247335,-1000.0,0.00061,120]
[354787252,1740694247344,-157.99,0.00061,30]
[354787253,1740694247354,-1769.31,0.00061,30]
[354787254,1740694247363,-150.0,0.00061145,2]
[354787255,1740694247372,-150.0,0.00061145,2]
[354787256,1740694247382,-1000.0,0.00061313,120]
[354787257,1740694247392,-7137.52097095,0.00061426,120]
[354787258,1740694247401,-1000.0,0.0006195,120]
[354787259,1740694247410,-500.0,0.0006237,120]
[354787260,1740694247420,-167.0,0.00063,120]
[354787261,1740694247428,-498.0,0.00063,120]
[354787262,1740694247437,-1000.0,0.00063,120]
[354787263,1740694247446,-151.0,0.00063014,120]
[354787264,1740694247455,-397.0,0.00063112,2]
[354787265,1740694247465,-160.0,0.0006351,3]
[354787266,1740694247474,-1000.0,0.00063547,120]
[354787267,1740694247484,-500.0,0.000637,120]
[354787268,1740694247493,-300.0,0.00063973,15]
[354787269,1740694247503,-7714.02219833,0.00064,120]
[354787270,1740694247512,-382.52,0.00064,30]
[354787271,1740694247521,-2501.01,0.00064,30]
[354787272,1740694247530,-61450.83,0.00064,30]
[354787273,1740694247539,-150.0,0.00064145,2]
[354787274,1740694247548,-150.0,0.00064145,2]
[354787275,1740694247557,-20000.0,0.000649,65]
[354787276,1740694247566,-556030.687853,0.000649,2]
[354787277,1740694247575,-498.0,0.00065,120]
[354787278,1740694247585,-872.05,0.000655,30]
[354787279,1740694247594,-1000.0,0.00065517,120]
[354787280,1740694247603,-1500.0,0.00065598,7]
[354787281,1740694247613,-12607.2,0.00065753,120]
[354787282,1740694247622,-500.0,0.00065771,120]
[354787283,1740694247631,-1000.0,0.00066,120]
[354787284,1740694247640,-1000.0,0.00066,120]
[354787285,1740694247649,-1001.0,0.00066,120]
[354787286,1740694247658,-385.0,0.00066112,2]
[354787287,1740694247668,-160.0,0.00066395,4]
[354787288,1740694247677,-167.0,0.00067,120]
[354787289,1740694247686,-498.0,0.00067,120]
[354787290,1740694247695,-1000.0,0.00067,120]
[354787291,1740694247704,-161.0,0.00067,120]
[354787292,1740694247714,-1769.31,0.00067,30]
[354787293,1740694247723,-1500.0,0.00067071,14]
[354787294,1740694247732,-161.0,0.000671,120]
[354787295,1740694247741,-150.0,0.00067145,2]
[354787296,1740694247750,-150.0,0.00067145,2]
[354787297,1740694247759,-1000.0,0.0006739,120]
[354787298,1740694247768,-1000.0,0.000675,2]
[354787299,1740694247778,-22674.65769109,0.00067808,2]
[354787300,1740694247787,-500000.0,0.00068,120]
[354787301,1740694247796,-500.0,0.00068,120]
[354787302,1740694247805,-1354.0,0.00068,120]
[354787303,1740694247815,-157.99,0.00068,30]
[354787304,1740694247824,-1000.0,0.00068284,120]
[354787305,1740694247833,-666.0,0.00068493,120]
[354787306,1740694247842,-1000.0,0.00068493,120]
[354787307,1740694247852,-1000.0,0.00068493,120]
[354787308,1740694247861,-1000.0,0.00068493,120]
[354787309,1740694247871,-724.43449184,0.00068493,120]
[354787310,1740694247879,-1000.0,0.00068493,2]
[354787311,1740694247889,-402.3599731,0.00068493,120]
[354787312,1740694247897,-1350.0,0.00069,120]
[354787313,1740694247907,-1350.0,0.00069,120]
[354787314,1740694247916,-1350.0,0.00069,120]
[354787315,1740694247930,-1350.0,0.00069,120]
[354787316,1740694247939,-899.8857256,0.00069041,60]
[354787317,1740694247949,-500.0,0.00069233,120]
[354787318,1740694247959,-160.0,0.0006928,5]
[354787319,1740694247968,-2000.0,0.000693,95]
[354787320,1740694247977,-303634.88905736,0.000694,120]
[354787321,1740694247986,-1500.0,0.00069463,14]
[354787322,1740694247996,-1000.0,0.000695,120]
[354787323,1740694248005,-1000.0,0.000695,120]
[354787324,1740694248014,-1000.0,0.000695,120]
[354787325,1740694248023,-1000.0,0.000695,120]
[354787326,1740694248033,-1000.0,0.000695,120]
[354787327,1740694248043,-1000.0,0.000695,120]
[354787328,1740694248052,-1000.0,0.000695,120]
[354787329,1740694248064,-1000.0,0.000695,120]
[354787330,1740694248084,-1000.0,0.000695,120]
[354787331,1740694248096,-1000.0,0.000695,120]
[354787332,1740694248107,-1000.0,0.000695,120]
[354787333,1740694248117,-1000.0,0.000695,120]
[354787334,1740694248130,-475.0,0.000695,120]
[354787335,1740694248140,-355.4786639,0.00069863,60]
[354787336,1740694248150,-418.8999716,0.00069863,60]
[354787337,1740694248161,-1000.0,0.000699,120]
[354787338,1740694248171,-1000.0,0.000699,120]
[354787339,1740694248182,-1000.0,0.000699,120]
[354787340,1740694248191,-1000.0,0.000699,120]
[354787341,1740694248201,-1000.0,0.000699,120]
[354787342,1740694248210,-1000.0,0.000699,120]
[354787343,1740694248220,-1000.0,0.000699,120]
[354787344,1740694248229,-1000.0,0.000699,120]
[354787345,1740694248239,-1000.0,0.000699,120]
[354787346,1740694248248,-500.0,0.000699,120]
[354787347,1740694248258,-902.27,0.000699,120]
[354787348,1740694248267,-1350.0,0.000699,120]
[354787349,1740694248277,-1350.0,0.000699,120]
[354787350,1740694248287,-1350.0,0.000699,120]
[354787351,1740694248297,-20000.0,0.0007,70]
[354787352,1740694248307,-641959.43598618,0.0007,30]
[354787353,1740694248316,-641959.43598618,0.0007,30]
[354787354,1740694248325,-500.0,0.0007,60]
[354787355,1740694248335,-1000.0,0.0007,120]
[354787356,1740694248344,-1000.0,0.0007,30]
[354787357,1740694248354,-150.0,0.00070145,2]
[354787358,1740694248363,-150.0,0.00070145,2]
[354787359,1740694248372,-2000.0,0.000703,97]
[354787360,1740694248381,-2501.01,0.000703,30]
[354787361,1740694248390,-382.52,0.000703,30]
[354787362,1740694248400,-61450.83,0.000703,30]
[354787363,1740694248409,-1000.0,0.00070631,120]
[354787364,1740694248419,-771.8906084,0.00070685,60]
[354787365,1740694248428,-12607.2,0.00071232,120]
[354787366,1740694248438,-1000.0,0.00071232,2]
[354787367,1740694248447,-2000.0,0.00071233,120]
[354787368,1740694248457,-717.0,0.000713,99]
[354787369,1740694248467,-872.05,0.000714,30]
[354787370,1740694248476,-1000.0,0.00071807,120]
[354787371,1740694248485,-3006.44810103,0.00072,120]
[354787372,1740694248495,-1769.31,0.00072,30]
[354787373,1740694248504,-151.0,0.00072027,120]
[354787374,1740694248514,-160.0,0.00072165,6]
[354787375,1740694248523,-500.0,0.00072877,120]
[354787376,1740694248532,-150.0,0.00073145,2]
[354787377,1740694248542,-150.0,0.00073145,2]
[354787378,1740694248552,-5535.56,0.000738,7]
[354787379,1740694248561,-157.99,0.000738,60]
[354787380,1740694248571,-7137.52097095,0.00073917,120]
[354787381,1740694248581,-1000.0,0.00073971,2]
[354787382,1740694248590,-1000.0,0.00075,120]
[354787383,1740694248600,-23000.0,0.00075,120]
[354787384,1740694248610,-160.0,0.0007505,7]
[354787385,1740694248620,-2501.01,0.000751,30]
[354787386,1740694248629,-382.52,0.000751,30]
[354787387,1740694248796,-61450.83,0.000751,30]
[354787388,1740694248806,-9701.43546054,0.00075444,120]
[354787389,1740694248816,-1000.0,0.00075587,120]
[354787390,1740694248826,-306.0,0.00075616,60]
[354787391,1740694248836,-179.55112219,0.00075949,60]
[354787392,1740694248845,-150.0,0.00076145,2]
[354787393,1740694248857,-150.0,0.00076145,2]
[354787394,1740694248867,-1000.0,0.00076422,80]
[354787395,1740694248877,-160.396363,0.000765,120]
[354787396,1740694248886,-7800.0,0.0007668,120]
[354787397,1740694248896,-1000.0,0.0007671,2]
[354787398,1740694248905,-12607.2,0.00076712,120]
[354787399,1740694248915,-500.0,0.00076712,120]
[354787400,1740694248925,-773.2061273,0.000768,30]
[354787401,1740694248990,-98.8438727,0.000768,30]
[354787402,1740694249000,-1769.31,0.000768,30]
[354787403,1740694249009,-1137.8461273,0.00076954,120]
[354787404,1740694249051,-41.22472193,0.00076954,120]
[354787405,1740694249132,-6620.92915077,0.00076954,120]
[354787406,1740694249141,-329.73901949,0.00077,120]
[354787414,1740694833302,9998.88215612,0.00051842,120]
[354787415,1740694838927,500.0,0.00027,30]
[354787416,1740694857651,14428.44609681,0.00051842,120]
[354787419,1740695146630,500.0,0.00027,30]
[354787427,1740695312123,1264.69886397,0.00051843,90]
[354787474,1740695432755,-550.0,0.00041636,5]
[354787475,1740695432765,-2392.87278048,0.00041637,2]
[354787476,1740695432918,-21993.27990376,0.00041637,2]
[354787480,1740695438655,-513.84731576,0.00041637,2]
[354787481,1740695438665,-4279.86295393,0.00044236,120]
[354787482,1740695438675,-770.0,0.00044336,5]
[354787483,1740695438684,-211.34092594,0.000449,10]
[354787484,1740695438694,-4998.88215612,0.00045,120]
[354787485,1740695438703,-1077.0,0.00047212,5]
[354787486,1740695438712,-210.16648589,0.00047615,2]
[354787487,1740695438721,-1783.52,0.00049305,10]
[354787488,1740695438730,-500.0,0.00049315,120]
[354787489,1740695438740,-500.0,0.00049315,120]
[354787490,1740695438749,-500.0,0.00049315,120]
[354787491,1740695438758,-500.0,0.00049315,120]
[354787492,1740695438767,-193.05,0.00049315,120]
[354787493,1740695438776,-500.0,0.00049315,120]
[354787495,1740695438785,-500.0,0.00049315,120]
[354787497,1740695438794,-500.0,0.00049315,120]
[354787499,1740695438803,-500.0,0.00049315,120]
[354787500,1740695438812,-500.0,0.00049315,120]
[354787501,1740695438822,-500.0,0.00049315,120]
[354787502,1740695438831,-500.0,0.00049315,120]
[354787503,1740695438840,-500.0,0.00049315,120]
[354787504,1740695438849,-636.36,0.00049315,120]
[354787505,1740695438859,-500.0,0.00049315,120]
[354787506,1740695438868,-516.47,0.00049315,120]
[354787507,1740695438877,-500.0,0.00049315,120]
[354787508,1740695438887,-500.0,0.00049315,120]
[354787509,1740695438896,-500.0,0.00049315,120]
[354787510,1740695438905,-500.0,0.00049315,120]
[354787511,1740695438914,-500.0,0.00049315,120]
[354787512,1740695438923,-500.0,0.00049315,120]
[354787513,1740695438933,-500.0,0.00049315,120]
[354787514,1740695438941,-500.0,0.00049315,120]
[354787515,1740695438949,-500.0,0.00049315,120]
[354787516,1740695438958,-500.0,0.00049315,120]
[354787517,1740695438967,-500.0,0.00049315,120]
[354787518,1740695438977,-500.0,0.00049315,120]
[354787519,1740695438987,-500.0,0.00049315,120]
[354787520,1740695438996,-500.0,0.00049315,120]
[354787521,1740695439005,-500.0,0.00049315,120]
[354787522,1740695439015,-561.17,0.00049315,120]
[354787523,1740695439024,-500.0,0.00049315,120]
[354787524,1740695439034,-500.0,0.00049315,120]
[354787525,1740695439044,-500.0,0.00049315,120]
[354787526,1740695439056,-500.0,0.00049315,120]
[354787527,1740695439066,-500.89193196,0.00049315,120]
[354787528,1740695439077,-500.0,0.00049315,120]
[354787529,1740695439086,-500.0,0.00049315,120]
[354787530,1740695439095,-500.0,0.00049315,120]
[354787531,1740695439105,-500.0,0.00049315,120]
[354787532,1740695439115,-500.0,0.00049315,2]
[354787533,1740695439124,-389.95259309,0.00049315,120]
[354787534,1740695439134,-448.08090194,0.00049315,120]
[354787535,1740695439143,-500.0,0.00049315,120]
[354787536,1740695439153,-500.0,0.00049315,120]
[354787537,1740695439162,-500.0,0.00049315,120]
[354787538,1740695439171,-500.0,0.00049315,120]
[354787539,1740695439181,-500.0,0.00049315,120]
[354787540,1740695439190,-500.0,0.00049315,120]
[354787541,1740695439199,-522.90018622,0.00049315,120]
[354787542,1740695439210,-500.0,0.00049315,120]
[354787543,1740695439219,-500.0,0.00049315,120]
[354787544,1740695439230,-500.0,0.00049315,120]
[354787545,1740695439239,-500.0,0.00049315,120]
[354787546,1740695439248,-500.0,0.00049315,120]
[354787547,1740695439258,-500.0,0.00049315,120]
[354787548,1740695439267,-500.0,0.00049315,120]
[354787549,1740695439276,-500.0,0.00049315,120]
[354787550,1740695439285,-500.0,0.00049315,120]
[354787551,1740695439294,-500.0,0.00049315,120]
[354787552,1740695439303,-500.0,0.00049315,120]
[354787553,1740695439313,-500.0,0.00049315,120]
[354787554,1740695439322,-500.0,0.00049315,120]
[354787555,1740695439331,-500.0,0.00049315,120]
[354787556,1740695439340,-500.0,0.00049315,120]
[354787557,1740695439350,-500.0,0.00049315,120]
[354787558,1740695439359,-500.0,0.00049315,120]
[354787559,1740695439368,-500.0,0.00049315,120]
[354787560,1740695439377,-500.0,0.00049315,120]
[354787561,1740695439387,-501.64705754,0.00049315,120]
[354787562,1740695439396,-500.0,0.00049315,120]
[354787563,1740695439405,-500.0,0.00049315,120]
[354787564,1740695439414,-500.0,0.00049315,120]
[354787565,1740695439423,-500.0,0.00049315,45]
[354787566,1740695439433,-500.0,0.00049315,120]
[354787567,1740695439442,-500.0,0.00049315,120]
[354787568,1740695439451,-500.0,0.00049315,120]
[354787569,1740695439460,-500.0,0.00049315,120]
[354787570,1740695439469,-500.0,0.00049315,120]
[354787571,1740695439483,-506.88242551,0.00049315,120]
[354787572,1740695439492,-500.0,0.00049315,120]
[354787573,1740695439502,-266.99326494,0.00049315,120]
[354787574,1740695439511,-500.0,0.00049315,120]
[354787575,1740695439520,-161.91501548,0.00049315,120]
[354787576,1740695439530,-500.0,0.00049315,120]
[354787577,1740695439539,-500.0,0.00049315,120]
[354787578,1740695439548,-486.37,0.00049315,120]
[354787579,1740695439558,-500.0,0.00049315,120]
[354787580,1740695439569,-500.0,0.00049315,120]
[354787581,1740695439579,-500.0,0.00049315,120]
[354787582,1740695439588,-1000.0,0.00049315,2]
[354787583,1740695439597,-500.0,0.00049315,120]